fUSD/lending_fUSD_20240821
["ID","MTS","AMOUNT","RATE_DAILY","PERIOD"]
[335418323,1724211040685,-150.0,0.00015841,2]
[335418325,1724211040693,-186.16593787,0.00015855,2]
[335418327,1724211040704,-425.16661411,0.00015855,2]
[335418329,1724211040713,-170.25338589,0.00015855,2]
[335418330,1724211040724,-51.44564703,0.00015855,2]
[335418331,1724211040733,-208.93947217,0.00015873,2]
[335418527,1724211044119,-402.39307981,0.00015873,2]
[335418528,1724211044129,-221.69903292,0.00015873,2]
[335418529,1724211044138,-150.0,0.00015877,2]
[335418530,1724211044147,-150.0,0.00015877,2]
[335418531,1724211044159,-574.6501849,0.0001589,2]
[335418532,1724211044171,-36.68236708,0.0001589,2]
[335418533,1724211044180,-221.69903292,0.0001589,2]
[335418534,1724211044189,-611.33255198,0.00015908,2]
[335418535,1724211044198,-221.69903292,0.00015908,2]
[335418536,1724211044207,-150.0,0.00015914,2]
[335418537,1724211044216,-59.75674878,0.00015926,2]
[335418610,1724212231730,-150.43,0.00010959,2]
[335418611,1724212231739,-149.57,0.00012089,2]
[335418612,1724212231753,-997.00916121,0.00012089,2]
[335418613,1724212231784,-945.08225378,0.00012089,2]
[335418614,1724212231793,-495.55,0.00012816,2]
[335418615,1724212231802,-614.50735367,0.00012938,2]
[335418616,1724212231813,-641.02,0.00012938,2]
[335418617,1724212231824,-30.57545265,0.00012938,2]
[335418618,1724212231834,-368.52992414,0.00013042,2]
[335418619,1724212231843,-4.89462321,0.00013042,2]
[335418620,1724212231854,-376.961734,0.00013042,2]
[335418621,1724212231864,-155.20691994,0.00013042,2]
[335418622,1724212231874,-155.24508963,0.00013042,2]
[335418623,1724212231883,-300.0,0.00013051,2]
[335418624,1724212231894,-300.0,0.00013051,2]
[335418625,1724212231904,-279.56380374,0.00013052,2]
[335418626,1724212231913,-365.83889017,0.00013052,2]
[335418627,1724212231923,-155.30432901,0.00013052,2]
[335418628,1724212231934,-432.5166998,0.00013052,2]
[335418629,1724212231943,-203.42899612,0.00013052,2]
[335418630,1724212231953,-164.71703924,0.00013052,2]
[335418631,1724212231962,-160.22974672,0.00013052,2]
[335418632,1724212231981,-603.13022988,0.00013052,2]
[335418633,1724212231990,-236.82544287,0.00013052,2]
[335418634,1724212231999,-1276.21844793,0.00013086,2]
[335418635,1724212232010,-350.86168738,0.00013086,2]
[335418636,1724212232019,-167.31055464,0.00013086,2]
[335418637,1724212232028,-155.0,0.00013292,2]
[335418638,1724212232038,-295.20003038,0.00013292,2]
[335418639,1724212232047,-529.27299633,0.00013391,2]
[335418640,1724212232056,-357.4813523,0.00013391,2]
[335418642,1724212232065,-499.99,0.00013391,2]
[335418644,1724212232075,-571.93,0.000135,2]
[335418645,1724212232084,-293.38853292,0.000135,2]
[335418646,1724212232095,-712.8352503,0.000135,2]
[335418647,1724212232117,-4311.39120602,0.000135,2]
[335418648,1724212232128,-2688.80501076,0.000135,2]
[335418649,1724212232138,-176.15,0.00013699,2]
[335418650,1724212232148,-155.0,0.0001387,2]
[335418651,1724212232158,-197.88447662,0.00013971,2]
[335418653,1724212232167,-1000.0,0.00014,3]
[335418655,1724212232176,-366.00042613,0.00014225,2]
[335418657,1724212232189,-37.34883837,0.00014225,2]
[335418659,1724212232198,-440.37857631,0.00014225,2]
[335418661,1724212232208,-270.65459462,0.00014225,2]
[335418663,1724212232221,-167.51811145,0.00014235,2]
[335418665,1724212232230,-420.0,0.00014312,2]
[335418667,1724212232239,-150.0,0.00014507,2]
[335418668,1724212232248,-155.19526761,0.00014509,2]
[335418669,1724212232259,-200.0,0.00014546,2]
[335418670,1724212232270,-1000.0,0.00014615,2]
[335418671,1724212232279,-500.0,0.00014635,2]
[335418672,1724212232289,-674.50137897,0.00014681,2]
[335418673,1724212232301,-426.79,0.00014767,2]
[335418674,1724212232311,-150.0,0.00014767,2]
[335418675,1724212232321,-150.0,0.00014767,2]
[335418676,1724212232331,-207.96737124,0.00014767,2]
[335418678,1724212237924,-1772.65250382,0.00011999,2]
[335418679,1724212237934,-323.51262876,0.00014767,2]
[335418680,1724212237943,-356.86,0.00014767,2]
[335418681,1724212237952,-531.48,0.00014767,2]
[335418682,1724212237962,-426.79,0.00014767,2]
[335418683,1724212237971,-356.86,0.00014767,2]
[335418684,1724212237980,-150.0,0.00014767,2]
[335418685,1724212237989,-426.79,0.00014767,2]
[335418686,1724212237998,-531.48,0.00014767,2]
[335418687,1724212238008,-356.86,0.00014767,2]
[335418688,1724212238017,-150.0,0.00014767,2]
[335418689,1724212238027,-356.86,0.00014778,2]
[335418690,1724212238036,-426.79,0.00014778,2]
[335418691,1724212238046,-150.0,0.00014778,2]
[335418692,1724212238055,-282.55,0.00014778,2]
[335418693,1724212238064,-531.48,0.00014778,2]
[335418694,1724212238074,-150.0,0.00014778,2]
[335418695,1724212238083,-2794.94,0.00014782,2]
[335418696,1724212238092,-5059.18,0.00014801,2]
[335418697,1724212238101,-160.0,0.00014911,2]
[335418698,1724212238111,-622.74,0.00014939,2]
[335418699,1724212238120,-240.17,0.00014992,2]
[335418700,1724212238129,-1296.0,0.00015,2]
[335418702,1724212238138,-179.26,0.00015038,2]
[335418704,1724212238147,-495.55,0.0001508,2]
[335418706,1724212238157,-200.0,0.00015191,2]
[335418707,1724212238166,-426.79,0.00015378,2]
[335418710,1724212238175,-300.0,0.00015378,2]
[335418712,1724212238185,-150.0,0.00015378,2]
[335418714,1724212238194,-150.0,0.00015378,2]
[335418716,1724212238204,-356.86,0.00015378,2]
[335418718,1724212238218,-150.0,0.00015378,2]
[335418720,1724212238230,-531.48,0.00015378,2]
[335418722,1724212238241,-505.57,0.00015502,2]
[335418724,1724212238252,-150.0,0.00015589,2]
[335418726,1724212238263,-531.48,0.00015589,2]
[335418728,1724212238273,-150.0,0.00015589,2]
[335418731,1724212238283,-531.48,0.00015589,2]
[335418733,1724212238295,-531.48,0.00015589,2]
[335418735,1724212238306,-150.0,0.00015589,2]
[335418737,1724212238317,-587.0,0.00015694,2]
[335418739,1724212238327,-543.48840377,0.00015732,2]
[335418741,1724212238337,-197.3121393,0.00015732,2]
[335418743,1724212238347,-150.0,0.00015732,2]
[335418746,1724212238357,-150.0,0.00015732,2]
[335418748,1724212238366,-283.28066852,0.00015732,2]
[335418750,1724212238375,-150.0,0.00015732,2]
[335418752,1724212238385,-150.0,0.00015732,2]
[335418753,1724212238393,-150.0,0.00015732,2]
[335418755,1724212238402,-150.0,0.00015732,2]
[335418757,1724212238412,-150.0,0.00015732,2]
[335418759,1724212238421,-150.0,0.00015732,2]
[335418762,1724212238433,-241.75085865,0.00015732,2]
[335418764,1724212238441,-543.48840377,0.00015749,2]
[335418766,1724212238450,-197.3121393,0.00015749,2]
[335418767,1724212238459,-283.28066852,0.00015749,2]
[335418769,1724212238469,-543.48840377,0.00015767,2]
[335418771,1724212238478,-197.3121393,0.00015767,2]
[335418773,1724212238487,-283.28066852,0.00015767,2]
[335418775,1724212238496,-150.0,0.00015773,2]
[335418777,1724212238505,-543.48840377,0.00015784,2]
[335418779,1724212238514,-197.3121393,0.00015784,2]
[335418781,1724212238523,-283.28066852,0.00015784,2]
[335418783,1724212238533,-543.48840377,0.00015802,2]
[335418785,1724212238542,-197.3121393,0.00015802,2]
[335418787,1724212238551,-283.28066852,0.00015802,2]
[335418789,1724212238561,-150.0,0.00015815,2]
[335418791,1724212238570,-543.48840377,0.0001582,2]
[335418792,1724212238580,-197.3121393,0.0001582,2]
[335418793,1724212238589,-283.28066852,0.0001582,2]
[335418794,1724212238598,-167.0,0.00015831,2]
[335418795,1724212238607,-543.48840377,0.00015837,2]
[335418796,1724212238616,-197.3121393,0.00015837,2]
[335418797,1724212238626,-283.28066852,0.00015837,2]
[335418798,1724212238634,-150.0,0.00015848,2]
[335418799,1724212238644,-543.48840377,0.00015855,2]
[335418800,1724212238653,-197.3121393,0.00015855,2]
[335418801,1724212238662,-283.28066852,0.00015855,2]
[335418803,1724212238670,-150.0,0.00015856,2]
[335418804,1724212238681,-362.1135,0.00015861,2]
[335418806,1724212238697,-543.48840377,0.00015873,2]
[335418808,1724212238706,-197.3121393,0.00015873,2]
[335418810,1724212238716,-283.28066852,0.00015873,2]
[335418812,1724212238724,-543.48840377,0.0001589,2]
[335418814,1724212238733,-197.3121393,0.0001589,2]
[335418816,1724212238742,-283.28066852,0.0001589,2]
[335418818,1724212238752,-150.0,0.00015898,2]
[335418820,1724212238761,-150.0,0.00015906,2]
[335418822,1724212238771,-543.48840377,0.00015908,2]
[335418824,1724212238780,-197.3121393,0.00015908,2]
[335418826,1724212238790,-283.28066852,0.00015908,2]
[335418828,1724212238798,-247.06014866,0.00015909,2]
[335418830,1724212238808,-5506.835,0.0001591,2]
[335418832,1724212238816,-289.0,0.0001591,2]
[335418834,1724212238826,-21182.08,0.0001591,2]
[335418836,1724212238835,-1205.0,0.0001591,2]
[335418838,1724212238844,-1673.0,0.0001591,2]
[335418840,1724212238854,-1076.0,0.0001591,2]
[335418842,1724212238863,-543.48840377,0.00015926,2]
[335418844,1724212238872,-197.3121393,0.00015926,2]
[335418846,1724212238881,-283.28066852,0.00015926,2]
[335418848,1724212238890,-2000.0,0.00015926,2]
[335418850,1724212238900,-538.08610431,0.00015926,2]
[335418852,1724212238909,-200.0,0.00015926,2]
[335418854,1724212238918,-3000.0,0.00015926,2]
[335418856,1724212238927,-150.0,0.0001594,2]
[335418858,1724212238937,-543.48840377,0.00015943,2]
[335418860,1724212238946,-197.3121393,0.00015943,2]
[335418862,1724212238955,-283.28066852,0.00015943,2]
[335418864,1724212238964,-543.48840377,0.00015961,2]
[335418866,1724212238973,-197.3121393,0.00015961,2]
[335418868,1724212238982,-283.28066852,0.00015961,2]
[335418870,1724212238992,-150.0,0.00015965,2]
[335418872,1724212239001,-543.48840377,0.00015979,2]
[335418874,1724212239010,-197.3121393,0.00015979,2]
[335418876,1724212239019,-283.28066852,0.00015979,2]
[335418878,1724212239028,-150.0,0.00015981,2]
[335418879,1724212239038,-543.48840377,0.00015996,2]
[335418880,1724212239047,-197.3121393,0.00015996,2]
[335418881,1724212239056,-283.28066852,0.00015996,2]
[335418882,1724212239066,-150.90510273,0.00015999,2]
[335418883,1724212239075,-2613.7615628,0.00015999,2]
[335418884,1724212239084,-1000.0,0.00016,2]
[335418885,1724212239093,-1000.0,0.00016,2]
[335418886,1724212239101,-1000.0,0.00016,2]
[335418887,1724212239110,-1000.0,0.00016,2]
[335418888,1724212239119,-305.95099274,0.00016,2]
[335418889,1724212239128,-1853.618264,0.00016,2]
[335418890,1724212239137,-543.48840377,0.00016014,2]
[335418891,1724212239146,-197.3121393,0.00016014,2]
[335418892,1724212239155,-283.28066852,0.00016014,2]
[335418893,1724212239164,-150.0,0.00016023,2]
[335418894,1724212239173,-150.0,0.00016023,2]
[335418895,1724212239185,-543.48840377,0.00016032,2]
[335418896,1724212239194,-197.3121393,0.00016032,2]
[335418897,1724212239203,-283.28066852,0.00016032,2]
[335418898,1724212239216,-543.48840377,0.00016049,2]
[335418899,1724212239226,-197.3121393,0.00016049,2]
[335418900,1724212239235,-283.28066852,0.00016049,2]
[335418901,1724212239244,-150.0,0.00016064,2]
[335418902,1724212239254,-543.48840377,0.00016067,2]
[335418903,1724212239263,-197.3121393,0.00016067,2]
[335418904,1724212239272,-283.28066852,0.00016067,2]
[335418905,1724212239283,-150.0,0.00016081,2]
[335418906,1724212239292,-150.0,0.00016081,2]
[335418907,1724212239301,-543.48840377,0.00016085,2]
[335418908,1724212239310,-197.3121393,0.00016085,2]
[335418909,1724212239319,-283.28066852,0.00016085,2]
[335418910,1724212239328,-2000.0,0.00016085,2]
[335418911,1724212239337,-543.48840377,0.00016102,2]
[335418912,1724212239346,-197.3121393,0.00016102,2]
[335418913,1724212239355,-283.28066852,0.00016102,2]
[335418914,1724212239364,-150.0,0.00016106,2]
[335418915,1724212239373,-543.48840377,0.0001612,2]
[335418916,1724212239382,-197.3121393,0.0001612,2]
[335418917,1724212239391,-283.28066852,0.0001612,2]
[335418918,1724212239400,-505.28,0.00016123,2]
[335418919,1724212239409,-500.0,0.00016123,2]
[335418920,1724212239418,-206.64,0.00016123,2]
[335418921,1724212239428,-500.0,0.00016123,2]
[335418922,1724212239437,-583.39,0.00016123,2]
[335418923,1724212239446,-543.48840377,0.00016138,2]
[335418924,1724212239455,-197.3121393,0.00016138,2]
[335418925,1724212239465,-283.28066852,0.00016138,2]
[335418926,1724212239474,-150.0,0.00016148,2]
[335418927,1724212239484,-1035.0902,0.00016153,2]
[335418928,1724212239493,-4870.9752,0.00016153,2]
[335418929,1724212239502,-543.48840377,0.00016155,2]
[335418930,1724212239511,-197.3121393,0.00016155,2]
[335418931,1724212239520,-283.28066852,0.00016155,2]
[335418932,1724212239529,-3508.57607423,0.00016161,2]
[335418933,1724212239539,-543.48840377,0.00016173,2]
[335418934,1724212239548,-197.3121393,0.00016173,2]
[335418935,1724212239556,-283.28066852,0.00016173,2]
[335418936,1724212239565,-150.0,0.00016189,2]
[335418937,1724212239575,-543.48840377,0.00016191,2]
[335418938,1724212239584,-197.3121393,0.00016191,2]
[335418939,1724212239593,-283.28066852,0.00016191,2]
[335418940,1724212239602,-150.0,0.00016198,2]
[335418941,1724212239612,-2109.1279,0.00016201,2]
[335418942,1724212239621,-359.3894,0.00016201,2]
[335418943,1724212239630,-543.48840377,0.00016208,2]
[335418944,1724212239639,-197.3121393,0.00016208,2]
[335418945,1724212239648,-283.28066852,0.00016208,2]
[335418946,1724212239658,-176.7717,0.0001622,2]
[335418947,1724212239667,-500.0,0.0001622,2]
[335418948,1724212239677,-543.48840377,0.00016226,2]
[335418949,1724212239688,-197.3121393,0.00016226,2]
[335418950,1724212239697,-283.28066852,0.00016226,2]
[335418951,1724212239707,-150.0,0.00016231,2]
[335418953,1724212239716,-543.48840377,0.00016244,2]
[335418954,1724212239726,-197.3121393,0.00016244,2]
[335418955,1724212239735,-283.28066852,0.00016244,2]
[335418956,1724212239744,-19382.8374173,0.00016253,2]
[335418957,1724212239754,-150.0,0.00016256,2]
[335418958,1724212239763,-543.48840377,0.00016261,2]
[335418959,1724212239773,-197.3121393,0.00016261,2]
[335418960,1724212239782,-283.28066852,0.00016261,2]
[335418961,1724212239791,-150.0,0.00016273,2]
[335418962,1724212239800,-543.48840377,0.00016279,2]
[335418963,1724212239810,-197.3121393,0.00016279,2]
[335418964,1724212239819,-283.28066852,0.00016279,2]
[335418966,1724212239828,-543.48840377,0.00016296,2]
[335418967,1724212239838,-197.3121393,0.00016296,2]
[335418968,1724212239847,-283.28066852,0.00016296,2]
[335418969,1724212239856,-893.1778,0.00016302,2]
[335418970,1724212239866,-660.0,0.00016314,2]
[335418971,1724212239875,-543.48840377,0.00016314,2]
[335418972,1724212239884,-49.43086337,0.00016314,2]
[335418988,1724212243899,-640.73140657,0.00013052,2]
[335418990,1724212246124,-635.48704136,0.00013052,2]
[335418991,1724212246135,-486.14,0.000135,2]
[335418992,1724212246144,-150.0,0.00014767,2]
[335418993,1724212246154,-531.48,0.00014767,2]
[335418994,1724212246164,-850.01,0.00014767,2]
[335418995,1724212246174,-647.9,0.00014767,2]
[335418996,1724212246183,-147.88127593,0.00016314,2]
[335418997,1724212246194,-283.28066852,0.00016314,2]
[335418998,1724212246204,-150.0,0.00016314,2]
[335418999,1724212246215,-150.0,0.00016314,2]
[335419000,1724212246225,-150.0,0.00016314,2]
[335419001,1724212246234,-1688.45932837,0.0001632,2]
[335419032,1724213170597,-400.0,0.0001,2]
[335419033,1724213171988,-400.0,0.0001,2]
[335419034,1724213184140,-250.0,0.0001,2]
[335419035,1724213214062,-400.0,0.000104,2]
[335419036,1724213215598,-118.2176203,0.000104,2]
[335419037,1724213215619,-281.7823797,0.000105,5]
[335419038,1724213224919,-300.0,0.00010499,2]
[335419039,1724213224942,-250.0,0.00010499,2]
[335419056,1724213306047,9147.59441535,0.00017,60]
[335419078,1724213377183,192.446857,0.00017,90]
[335419079,1724213431980,-298.61891748,0.00010499,2]
[335419080,1724213431991,-275.70718727,0.00011336,2]
[335419081,1724213432001,-181.55813859,0.000123,2]
[335419082,1724213432011,-300.0,0.00012399,2]
[335419083,1724213432019,-875.21575666,0.000124,5]
[335419084,1724213432038,-455.37085384,0.000124,5]
[335419085,1724213432049,-3804.41474252,0.000124,5]
[335419086,1724213432144,-439.35,0.000124,5]
[335419087,1724213432158,-5644.64864698,0.000124,5]
[335419088,1724213432168,-513.73,0.00012918,2]
[335419089,1724213432179,-251.62135299,0.00012938,2]
[335419094,1724213438165,-565.45009752,0.00012938,2]
[335419095,1724213438175,-212.14075142,0.00013001,2]
[335419096,1724213438184,-660.97560103,0.00013001,2]
[335419097,1724213438193,-537.12442825,0.00013001,2]
[335419098,1724213438202,-155.41013361,0.00013001,2]
[335419099,1724213438211,-155.0,0.00013042,2]
[335419100,1724213438221,-297.94,0.00013042,2]
[335419101,1724213438230,-459.38528762,0.00013052,2]
[335419102,1724213438241,-507.85865847,0.00013052,2]
[335419103,1724213438250,-155.0,0.00013086,2]
[335419104,1724213438259,-223.08654922,0.00013292,2]
[335419105,1724213438269,-420.0,0.00013606,2]
[335419106,1724213438278,-317.48412157,0.00013688,2]
[335419107,1724213438287,-256.14758321,0.0001385,2]
[335419108,1724213438296,-155.0,0.0001385,2]
[335419109,1724213438305,-525.49060934,0.00013851,2]
[335419110,1724213438314,-413.22,0.000139,2]
[335419112,1724213438323,-155.16674984,0.00013971,2]
[335419114,1724213438333,-166.64578925,0.00014164,2]
[335419116,1724213438342,-500.0,0.00014164,2]
[335419118,1724213438351,-949.71257476,0.00014225,2]
[335419120,1724213438360,-415.21858786,0.00014398,2]
[335419122,1724213438369,-477.41127141,0.00014517,2]
[335419124,1724213438378,-414.09,0.00014533,2]
[335419126,1724213438387,-250.0,0.00014533,2]
[335419128,1724213438397,-1304.65,0.0001454,2]
[335419130,1724213438406,-3940.15,0.00014549,2]
[335419132,1724213438415,-312.34,0.00014549,2]
[335419134,1724213438424,-200.0,0.00014563,2]
[335419136,1724213438433,-864.15,0.00014568,2]
[335419138,1724213438442,-200.0,0.00014599,2]
[335419139,1724213438451,-874.83,0.00014601,2]
[335419141,1724213438460,-500.0,0.00014614,2]
[335419143,1724213438469,-186.74,0.00014625,2]
[335419145,1724213438479,-150.0,0.00014643,2]
[335419147,1724213438488,-150.0,0.00014735,2]
[335419149,1724213438497,-800.0,0.00014736,2]
[335419151,1724213438506,-10995.24,0.00014736,2]
[335419153,1724213438515,-426.79,0.00014767,2]
[335419155,1724213438524,-426.79,0.00014767,2]
[335419157,1724213438534,-426.79,0.00014767,2]
[335419159,1724213438543,-426.44,0.00014767,2]
[335419161,1724213438552,-4562.39279516,0.00014782,2]
[335419163,1724213438561,-587.0,0.0001493,2]
[335419165,1724213438570,-23900.0,0.00014998,2]
[335419167,1724213438579,-250.0,0.00015051,2]
[335419169,1724213438588,-200.0,0.00015068,2]
[335419171,1724213438601,-304.0,0.00015097,2]
[335419173,1724213438610,-513.73,0.00015182,2]
[335419175,1724213438619,-172.2,0.00015274,2]
[335419177,1724213438628,-358.70234649,0.00015732,2]
[335419179,1724213438638,-150.0,0.00015732,2]
[335419181,1724213438648,-244.20783021,0.00015732,2]
[335419183,1724213438657,-169.20772768,0.00015732,2]
[335419185,1724213438666,-186.96524123,0.00015732,2]
[335419187,1724213438676,-150.0,0.00015732,2]
[335419189,1724213438685,-150.0,0.00015732,2]
[335419191,1724213438694,-253.60775163,0.00015732,2]
[335419192,1724213438703,-150.0,0.00015732,2]
[335419194,1724213438713,-150.0,0.00015732,2]
[335419196,1724213438722,-150.0,0.00015732,2]
[335419198,1724213438731,-358.70234649,0.00015749,2]
[335419200,1724213438741,-186.96524123,0.00015749,2]
[335419202,1724213438749,-150.0,0.00015752,2]
[335419204,1724213438758,-358.70234649,0.00015767,2]
[335419206,1724213438767,-186.96524123,0.00015767,2]
[335419208,1724213438777,-150.0,0.00015773,2]
[335419210,1724213438786,-426.79,0.00015778,2]
[335419212,1724213438795,-358.70234649,0.00015784,2]
[335419214,1724213438805,-186.96524123,0.00015784,2]
[335419216,1724213438814,-150.0,0.00015793,2]
[335419218,1724213438823,-150.0,0.00015796,2]
[335419220,1724213438833,-358.70234649,0.00015802,2]
[335419221,1724213438842,-186.96524123,0.00015802,2]
[335419223,1724213438852,-150.0,0.00015814,2]
[335419225,1724213438862,-358.70234649,0.0001582,2]
[335419227,1724213438872,-186.96524123,0.0001582,2]
[335419229,1724213438881,-167.0,0.00015831,2]
[335419231,1724213438891,-150.0,0.00015834,2]
[335419233,1724213438901,-358.70234649,0.00015837,2]
[335419235,1724213438911,-186.96524123,0.00015837,2]
[335419237,1724213438920,-150.0,0.00015855,2]
[335419239,1724213438930,-358.70234649,0.00015855,2]
[335419241,1724213438940,-186.96524123,0.00015855,2]
[335419243,1724213438949,-150.0,0.00015861,2]
[335419245,1724213438960,-358.70234649,0.00015873,2]
[335419247,1724213438970,-186.96524123,0.00015873,2]
[335419249,1724213438979,-150.0,0.00015875,2]
[335419251,1724213438989,-358.70234649,0.0001589,2]
[335419253,1724213438998,-186.96524123,0.0001589,2]
[335419255,1724213439009,-150.0,0.00015896,2]
[335419257,1724213439018,-358.70234649,0.00015908,2]
[335419259,1724213439027,-186.96524123,0.00015908,2]
[335419261,1724213439037,-150.0,0.00015917,2]
[335419263,1724213439046,-358.70234649,0.00015926,2]
[335419265,1724213439055,-186.96524123,0.00015926,2]
[335419267,1724213439064,-150.0,0.00015926,2]
[335419269,1724213439075,-150.0,0.00015926,2]
[335419271,1724213439085,-150.0,0.00015937,2]
[335419273,1724213439095,-358.70234649,0.00015943,2]
[335419275,1724213439105,-186.96524123,0.00015943,2]
[335419278,1724213439114,-150.0,0.00015958,2]
[335419280,1724213439125,-358.70234649,0.00015961,2]
[335419282,1724213439136,-186.96524123,0.00015961,2]
[335419284,1724213439147,-150.0,0.00015978,2]
[335419286,1724213439157,-358.70234649,0.00015979,2]
[335419288,1724213439166,-186.96524123,0.00015979,2]
[335419290,1724213439176,-150.0,0.0001599,2]
[335419292,1724213439184,-358.70234649,0.00015996,2]
[335419294,1724213439193,-186.96524123,0.00015996,2]
[335419296,1724213439203,-150.0,0.00015999,2]
[335419298,1724213439211,-358.70234649,0.00016014,2]
[335419300,1724213439220,-186.96524123,0.00016014,2]
[335419302,1724213439229,-150.0,0.00016019,2]
[335419304,1724213439238,-150.0,0.00016023,2]
[335419306,1724213439247,-358.70234649,0.00016032,2]
[335419308,1724213439256,-186.96524123,0.00016032,2]
[335419309,1724213439266,-150.0,0.0001604,2]
[335419311,1724213439275,-358.70234649,0.00016049,2]
[335419313,1724213439284,-186.96524123,0.00016049,2]
[335419315,1724213439294,-150.0,0.00016055,2]
[335419316,1724213439303,-150.0,0.00016061,2]
[335419317,1724213439312,-358.70234649,0.00016067,2]
[335419318,1724213439322,-186.96524123,0.00016067,2]
[335419319,1724213439341,-150.0,0.00016081,2]
[335419320,1724213439350,-358.70234649,0.00016085,2]
[335419321,1724213439359,-186.96524123,0.00016085,2]
[335419322,1724213439369,-624.84641014,0.00016099,2]
[335419324,1724213439379,-150.0,0.00016102,2]
[335419325,1724213439388,-358.70234649,0.00016102,2]
[335419327,1724213439398,-186.96524123,0.00016102,2]
[335419329,1724213439407,-7000.0,0.00016115,3]
[335419331,1724213439417,-7000.0,0.00016115,3]
[335419333,1724213439431,-358.70234649,0.0001612,2]
[335419336,1724213439442,-186.96524123,0.0001612,2]
[335419338,1724213439459,-150.0,0.0001612,2]
[335419340,1724213439472,-150.0,0.0001612,2]
[335419342,1724213439492,-150.0,0.00016122,2]
[335419344,1724213439517,-358.70234649,0.00016138,2]
[335419346,1724213439530,-186.96524123,0.00016138,2]
[335419348,1724213439544,-150.0,0.00016143,2]
[335419350,1724213439565,-358.70234649,0.00016155,2]
[335419352,1724213439576,-186.96524123,0.00016155,2]
[335419354,1724213439586,-150.0,0.00016163,2]
[335419356,1724213439596,-358.70234649,0.00016173,2]
[335419358,1724213439607,-186.96524123,0.00016173,2]
[335419360,1724213439627,-150.0,0.00016184,2]
[335419362,1724213439642,-150.0,0.00016185,2]
[335419364,1724213439652,-358.70234649,0.00016191,2]
[335419366,1724213439661,-186.96524123,0.00016191,2]
[335419368,1724213439676,-150.0,0.00016204,2]
[335419370,1724213439684,-358.70234649,0.00016208,2]
[335419372,1724213439694,-186.96524123,0.00016208,2]
[335419374,1724213439704,-1000.0,0.0001622,2]
[335419376,1724213439714,-150.0,0.00016225,2]
[335419378,1724213439723,-358.70234649,0.00016226,2]
[335419380,1724213439732,-186.96524123,0.00016226,2]
[335419382,1724213439742,-358.70234649,0.00016244,2]
[335419384,1724213439751,-186.96524123,0.00016244,2]
[335419386,1724213439760,-150.0,0.00016246,2]
[335419388,1724213439770,-150.0,0.00016249,2]
[335419390,1724213439779,-2000.0,0.00016252,2]
[335419392,1724213439789,-358.70234649,0.00016261,2]
[335419395,1724213439804,-186.96524123,0.00016261,2]
[335419397,1724213439814,-150.0,0.00016266,2]
[335419399,1724213439823,-5278.7746,0.00016274,2]
[335419401,1724213439833,-358.70234649,0.00016279,2]
[335419403,1724213439842,-186.96524123,0.00016279,2]
[335419405,1724213439852,-150.0,0.00016287,2]
[335419407,1724213439862,-358.70234649,0.00016296,2]
[335419409,1724213439872,-186.96524123,0.00016296,2]
[335419411,1724213439882,-150.0,0.000163,2]
[335419413,1724213439892,-496.0,0.000163,2]
[335419415,1724213439901,-150.0,0.00016307,2]
[335419417,1724213439911,-2759.461609,0.00016313,2]
[335419419,1724213439921,-358.70234649,0.00016314,2]
[335419421,1724213439931,-186.96524123,0.00016314,2]
[335419423,1724213439940,-150.0,0.00016314,2]
[335419425,1724213439950,-150.0,0.00016314,2]
[335419427,1724213439960,-150.0,0.00016314,2]
[335419429,1724213439970,-150.0,0.00016314,2]
[335419432,1724213439980,-933.5487081,0.00016315,2]
[335419434,1724213439991,-2823.22556,0.0001632,2]